Cogmind - Beta 15 @@@ ROGUE MODE // 2025.06.25 @ 19:41:56 Player: Skysub Result: Destroyed by G-47 Trooper with Particle Gun Performance ------------- Evolutions (3) 1500 Regions Visited (5) 1000 Robots Destroyed (88) 440 Value Destroyed (3073) 3073 Prototype IDs (16) 320 Alien Tech Used (0) 0 Bonus (44) 44 TOTAL SCORE: 6377 Bonus ------- High Alert Combat Kills 44 Cogmind --------- Core Integrity 0/700 Matter 17/300 Energy 91/100 System Corruption 16% Temperature Cool (11) Movement Flying (32) Location -7/Storage Parts ------- > --- POWER (1) -------- (None) > --- PROPULSION (4) --- Cooled VTOL Module Cooled VTOL Module (fused) > --- UTILITY (6) ------ Improved Signal Interpreter Advanced Targeting Computer Gun Armor > --- WEAPON (2+2) ----- (None) > --- INVENTORY (5) ---- Improved Medium Armor Plating Makeshift Light Armor Plating Subdweller Shrapnel Launcher Peak State ------------ > --- POWER ------------ Light Nuclear Core > --- PROPULSION ------- Armored Huge Wheel Armored Huge Wheel > --- UTILITY ---------- Large Storage Unit Improved Signal Interpreter Advanced Targeting Computer Hardened Heavy Armor Plating Improved Hacking Suite > --- WEAPON ----------- Gauss Rifle Precision Assault Rifle > --- INVENTORY -------- Cooled VTOL Module Cooled VTOL Module Subdweller Optics Subdweller Optics Improved Sensor Array Reaction Control System Makeshift Light Armor Plating Gun Armor Hardlight Generator Precision Assault Rifle Rocket Launcher Subdweller Shrapnel Launcher Subdweller Shrapnel Launcher Subdweller Shrapnel Launcher Katana [Rating: 53] Favorites ----------- Power Light Nuclear Core Engine Light Ion Engine Power Core Light Nuclear Core Propulsion Armored Huge Wheel Treads Light Treads Leg Aluminum Leg Wheel Armored Huge Wheel Hover Unit Hover Unit Flight Unit Cooled VTOL Module Utility Large Storage Unit Device Improved Sensor Array Storage Large Storage Unit Processor Advanced Targeting Computer Hackware Improved Hacking Suite Protection Makeshift Light Armor Plating Weapon Assault Rifle Energy Gun Advanced Beam Rifle Ballistic Gun Assault Rifle Ballistic Cannon Gauss Cannon Launcher Subdweller Shrapnel Launcher Special Weapon Mining Laser Slashing Weapon Katana Build | -11 -10 -10 -8 -7 -7 ------- Run | Yrd Mat Sub Mat Fac Sto Slots Evolved 6 | . . . 4 2 . Power . | . . . . . . Propulsion 2 | . . . 2 . . Utility 4 | . . . 2 2 . Weapon . | . . . . . . Parts Attached 82 | 8 5 14 32 23 . Power 9 | 2 . 1 4 2 . Engine 5 | 2 . 1 2 . . Core 4 | . . . 2 2 . Reactor . | . . . . . . Propulsion 25 | 2 . 5 11 7 . Treads 3 | 2 . . 1 . . Leg 5 | . . . 5 . . Wheel 12 | . . 5 3 4 . Hover 2 | . . . 2 . . Flight 3 | . . . . 3 . Utility 27 | 2 2 4 8 11 . Device 8 | 1 . 2 1 4 . Storage 2 | 1 1 . . . . Processor 6 | . . 1 3 2 . Hackware 2 | . . . . 2 . Protection 9 | . 1 1 4 3 . Artifact . | . . . . . . Weapon 21 | 2 3 4 9 3 . Energy Gun 3 | . . . 3 . . Energy Cannon . | . . . . . . Ballistic Gun 11 | 2 2 1 4 2 . Ballistic Cannon 1 | . . . . 1 . Launcher 4 | . 1 2 1 . . Special Weapon 1 | . . 1 . . . Impact Weapon . | . . . . . . Slashing Weapon 1 | . . . 1 . . Piercing Weapon . | . . . . . . Special Melee Weapon . | . . . . . . Unidentified Prototypes 5 | . . . 2 3 . Corrupted Parts 1 | . . . . 1 . System Corruption 1 | . . . . 1 . Parts Lost 37 | . . 11 10 14 2 Power 7 | . . 2 4 1 . Propulsion 10 | . . 3 3 3 1 Utility 9 | . . 2 1 5 1 Weapon 11 | . . 4 2 5 . Highest Loss Streak 5 | . . 3 4 5 3 To Critical Strikes 1 | . . 1 . . . Average Backups 12 | 1 7 12 13 13 2 Power . | . 1 . . . . Propulsion 1 | . 1 2 1 1 . Utility 4 | . . 2 6 6 2 Weapon 5 | . 4 6 5 5 . Tool/Special . | . . . . . . Unused Backups 14 | . 1 2 5 6 . Power . | . . . . . . Propulsion 3 | . . 1 1 1 . Utility 5 | . 1 . 1 3 . Weapon 5 | . . 1 2 2 . Tool/Special 1 | . . . 1 . . Average Slot Usage (%) 80 | . 99 94 74 74 43 Engine 5 | . 14 12 3 . . Core 3 | . . . 3 4 . Treads 5 | . 28 10 . . . Wheel 12 | . . 17 12 13 . Device 4 | . 8 3 3 4 5 Storage 9 | . 14 14 9 6 . Processor 9 | . . 2 10 15 13 Protection 7 | . 4 4 8 9 6 Energy Gun 1 | . . . 5 . . Ballistic Gun 13 | . 26 18 11 9 . Launcher 1 | . 1 6 . . 1 Slashing Weapon 1 | . . . . 2 . Peak Build Rating 53 | 9 9 16 41 53 33 Average Rating 30 | 5 8 11 30 47 30 On Entrance 16 | . 9 7 16 35 33 Naked Turns . | . . . . . . Heaviest Build 56 | 13 32 45 50 56 13 Greatest Support 61 | 40 40 40 61 56 10 Greatest Overweight (x) 9 | . . 3 9 2 1 Average Overweight (x) . | . . . . . . Largest Inventory Capacity 15 | 8 15 15 15 15 5 Average Capacity 14 | 7 9 15 15 14 5 Most Carried 15 | 4 8 15 15 15 3 Average Carried 12 | 2 7 12 13 13 2 Final Capacity 15 | 8 15 15 15 5 5 Final Carried 15 | 4 8 13 15 3 3 Class Distribution -------------------- 96% | Mutant 3% | Scavenger-Mutant Dominant Class ---------------- Mutant | -10/Materials Mutant | -10/Subcaves Mutant | -8/Materials Mutant | -7/Factory Sprinter | -7/Storage Resources | -11 -10 -10 -8 -7 -7 ----------- Run | Yrd Mat Sub Mat Fac Sto Matter Collected 3021 | 260 245 535 916 1065 . Remotely . | . . . . . . Salvage Created 3410 | 63 313 416 1547 1071 . Parts 185 | 5 26 25 72 57 . Haulers Intercepted 1 | . . . 1 . . Recyclers Shooed 2 | . . . . 2 . Parts Field Recycled . | . . . . . . Retrieved Matter . | . . . . . . Parts Self-Destructed 1 | . . 1 . . . Prevented . | . . . . . . Kills | -11 -10 -10 -8 -7 -7 ------- Run | Yrd Mat Sub Mat Fac Sto Combat Hostiles Destroyed 67 | . 7 12 28 20 . Melee 1 | . . . . 1 . Guns 54 | . 7 8 26 13 . AOE 12 | . . 4 2 6 . Classes Destroyed 14 | 1 3 3 4 3 . Worker 5 | . . . . 5 . Builder 3 | . 2 . 1 . . Tunneler 3 | 3 . . . . . Hauler 1 | . . . 1 . . Recycler 4 | . . . 2 2 . Operator 2 | . 1 . 1 . . Watcher 3 | . . . 2 1 . Swarmer 8 | . . 1 4 3 . Grunt 36 | . 7 . 17 12 . Brawler 1 | . . . . 1 . Sentry 7 | . . 1 6 . . Hunter 1 | . . . 1 . . Programmer 4 | . . . . 4 . Subdweller 10 | . . 10 . . . Best Kill Streak 8 | 3 3 2 8 5 . Combat Bots Only 6 | . 2 2 6 3 . Max Kills in Single Turn 2 | 1 1 2 2 2 . Gunslinging 1 | . . . . 1 . Exploded 2 | . . 2 1 2 . Melee 1 | . . . . 1 . Uniques/NPCs Destroyed . | . . . . . . Combat | -11 -10 -10 -8 -7 -7 -------- Run | Yrd Mat Sub Mat Fac Sto Hostile Shots Fired 690 | . 28 73 201 319 69 Missed 231 | . 7 27 53 114 30 Hits 459 | . 21 46 148 205 39 Projectile 459 | . 21 46 148 205 39 AOE 3 | . . 1 . 2 . Critical Strikes 11 | . . 1 4 6 . Damage Taken 7242 | . 256 1124 2171 3363 328 Core 1306 | . 21 217 357 585 126 Absorbed by Shields 8 | . . . . 8 . Regen/Repaired (Parts) 201 | . . . 201 . . Core Remaining (%) 46 | 100 . 4 35 . . Volleys Fired 294 | 7 33 48 132 74 . Largest 2 | 2 2 2 2 2 . Hottest 124 | 40 40 100 124 61 . Shots Fired 548 | 14 64 84 256 130 . Gun 517 | 14 62 78 253 110 . Cannon 8 | . . . . 8 . Launcher 22 | . 2 5 3 12 . Special 1 | . . 1 . . . Kinetic 480 | 14 62 83 203 118 . Thermal 51 | . . 1 50 . . Explosive 17 | . 2 . 3 12 . Electromagnetic . | . . . . . . Robot Hit Streak 15 | 10 10 12 15 14 . Robot Miss Streak 4 | 1 2 2 4 2 . Penetration Max 1 | . . . 1 1 . Secondary Targets 6 | . . 2 1 3 . Max Gunslinging Chain 1 | . . 1 1 1 . Shots Hit Robots 397 | 11 43 64 186 93 . Core Hits 165 | 6 19 23 70 47 . Critical Kills 2 | . . . . 2 . Critical Parts Destroyed 1 | . . . 1 . . Critical Strikes 10 | . . . 7 3 . Burn 6 | . . . 6 . . Destroy 3 | . . . 1 2 . Sever 1 | . . . . 1 . Melee Attacks 37 | . . . 2 35 . Impact . | . . . . . . Slashing 37 | . . . 2 35 . Piercing . | . . . . . . Sneak Attacks 2 | . . . . 2 . Combat Hostiles . | . . . . . . Follow-up Attacks . | . . . . . . Damage Inflicted 8030 | 85 564 1224 3436 2721 . Guns 6240 | 85 532 759 3091 1773 . Cannons 176 | . . . . 176 . Explosions 1330 | . 31 465 306 528 . Melee 192 | . . . . 192 . Ramming 92 | . 1 . 39 52 . Kinetic 6163 | 85 532 1224 2373 1949 . Thermal 808 | . . . 718 90 . Explosive 775 | . 31 . 306 438 . Electromagnetic . | . . . . . . Impact . | . . . . . . Slashing 192 | . . . . 192 . Piercing . | . . . . . . Highest Corruption 16 | . . . . 16 16 Average Corruption 6 | . . . . 6 16 Corruption Purged . | . . . . . . Corruption Blocked . | . . . . . . Effects 58 | . . . . 54 4 Message Errors 14 | . . . . 13 1 Matter Fused 16 | . . . . 16 . Heat Flow Errors 3 | . . . . 3 . Energy Discharges 9 | . . . . 9 . Parts Rejected 1 | . . . . 1 . Parts Fused 1 | . . . . . 1 Data Loss (minor) 3 | . . . . 3 . Data Loss (major) 3 | . . . . 2 1 Misfires 4 | . . . . 4 . Misdirections 2 | . . . . 1 1 Weapon Failures 2 | . . . . 2 . Overload Shots . | . . . . . . Overflow Damage 131 | . . . 24 107 . Projectiles . | . . . . . . Explosions 131 | . . . 24 107 . Melee . | . . . . . . Knockbacks . | . . . . . . Impact . | . . . . . . Kinetic . | . . . . . . Secondary . | . . . . . . Self-Inflicted Damage 92 | . . . 18 74 . Shots 2 | . . . . 2 . Rammed 9 | 1 . . 4 4 . Targets Rammed 11 | 1 1 . 5 4 . Kicked 1 | . . . 1 . . Crushed 1 | . 1 . . . . Highest Temperature 362 | . 7 . 362 275 . Average Temperature 68 | . 3 . 86 44 . Received Heat Transfer 1980 | . 144 138 1053 528 117 Effects 2 | . . . 2 . . Energy Bleed 2 | . . . 2 . . Siege Activations . | . . . . . . Martial Activations . | . . . . . . Shielding Activations . | . . . . . . Robots Disrupted . | . . . . . . Combat Hostiles . | . . . . . . Robots Corrupted . | . . . . . . Combat Hostiles . | . . . . . . Parts Fried . | . . . . . . Impact Corruptions . | . . . . . . Robots Melted . | . . . . . . Combat Hostiles . | . . . . . . Parts Melted 5 | . . 2 2 1 . Heat Transferred 1863 | . . . 1813 50 . Parts Sabotaged . | . . . . . . Parts Stolen . | . . . . . . Parts Stripped . | . . . . . . Power Chain Reactions . | . . . . . . Alert | -11 -10 -10 -8 -7 -7 ------- Run | Yrd Mat Sub Mat Fac Sto Maximum Alert Level 2 | . . . 2 2 . Low Security (%) 82 | 100 100 . 67 85 100 Level 1 10 | . . . 11 13 . Level 2 7 | . . . 21 . . Level 3 . | . . . . . . Level 4 . | . . . . . . Level 5 . | . . . . . . High Security . | . . . . . . Max Security . | . . . . . . Peak Influence 451 | 10 65 . 451 445 196 Initial 198 | . . . . 198 196 Average 116 | 1 15 . 154 122 184 Influence Increases 2177 | 15 215 40 898 994 15 Destroy 0b10 Robot/C 1140 | . 140 40 560 400 . Destroy 0b10 Robot/NC 105 | 15 15 . 35 40 . Destroy Leader 228 | . 20 . 126 82 . Successful Hack 38 | . 10 . 16 12 . Disable Machine 120 | . . . 30 90 . Destroy Structure 156 | . 15 . 26 115 . Partial Spotted 45 | . . . 15 15 15 Lose Combat Pursuer 345 | . 15 . 90 240 . Influence Decreases 2016 | 15 214 41 460 999 287 Entered New Map 478 | . . 1 . 240 237 Time Decay 1297 | 15 214 40 379 619 30 Lost Part 241 | . . . 81 140 20 Squads Dispatched 22 | . . . 4 15 3 Investigation 5 | . . . 1 3 1 Extermination 7 | . . . . 7 . Reinforcement 10 | . . . 3 5 2 Assault . | . . . . . . Garrison . | . . . . . . Intercept . | . . . . . . Searches Triggered . | . . . . . . Construction Impeded . | . . . . . . Haulers Reinforced . | . . . . . . Active Scanning Responses . | . . . . . . Cargo Convoy Interrupts 1 | . . . . 1 . Stealth | -11 -10 -10 -8 -7 -7 --------- Run | Yrd Mat Sub Mat Fac Sto Distress Signals 7 | . . . 5 2 . Communications Jammed . | . . . . . . Distress Signals . | . . . . . . Times Spotted 122 | . 8 13 49 44 8 Peak Tracking Total 8 | . 3 2 7 8 7 Tactical Retreats 17 | . 1 . 5 11 . Traps | -11 -10 -10 -8 -7 -7 ------- Run | Yrd Mat Sub Mat Fac Sto Traps Triggered 8 | . . 2 1 5 . Indirectly . | . . . . . . Trap Hack Attempts . | . . . . . . Triggered . | . . . . . . Disarmed . | . . . . . . Reprogrammed . | . . . . . . Reused . | . . . . . . Traps Extracted . | . . . . . . Installed . | . . . . . . Triggered . | . . . . . . Machines | -11 -10 -10 -8 -7 -7 ---------- Run | Yrd Mat Sub Mat Fac Sto Machines Disabled 9 | . . 1 2 6 . Max in Single Turn 3 | . . 1 1 3 . Garrison Access 1 | . . . 1 . . Machines Repaired . | . . . . . . Machines Dismantled . | . . . . . . Machines Sabotaged . | . . . . . . Overloaded Fab Kills . | . . . . . . Hacking | -11 -10 -10 -8 -7 -7 --------- Run | Yrd Mat Sub Mat Fac Sto Machines Accessed 25 | . 1 2 11 9 2 Terminals 13 | . 1 . 7 4 1 Fabricators . | . . . . . . Repair Stations 2 | . . . 1 1 . Recycling Units 5 | . . . 1 3 1 Scanalyzers 1 | . . . 1 . . Garrison Access 2 | . . . 1 1 . Total Hacks 61 | . 4 6 31 17 3 Successful 25 | . 2 6 13 4 . Failed 36 | . 2 . 18 13 3 Catastrophic 6 | . . . 2 3 1 Database Lockouts . | . . . . . . Manual 22 | . 1 . 13 7 1 Terminals 31 | . 4 . 19 7 1 Fabricators . | . . . . . . Repair Stations 6 | . . . 3 3 . Recycling Units 11 | . . . 4 5 2 Scanalyzers 4 | . . . 4 . . Garrison Access 3 | . . . 1 2 . Terminal Hacks 9 | . 1 6 2 . . Record 5 | . . 5 . . . Branch Access Points 1 | . . . 1 . . Zone Layout 2 | . 1 . 1 . . Proto ID Catalog 1 | . . 1 . . . Fabricator Hacks . | . . . . . . Repair Station Hacks 3 | . . . 2 1 . Scan Component 2 | . . . 1 1 . Repair 1 | . . . 1 . . Recycling Unit Hacks 6 | . . . 3 3 . Report Inventory 5 | . . . 2 3 . Retrieve Components 1 | . . . 1 . . Scanalyzer 1 | . . . 1 . . Insert Component 1 | . . . 1 . . Garrison Access Hacks 1 | . . . 1 . . Seal Access 1 | . . . 1 . . Unauthorized Hacks 5 | . 1 . 4 . . Terminals 5 | . 1 . 4 . . Botnet 5 | . 1 . 4 . . Fabricators . | . . . . . . Repair Stations . | . . . . . . Recycling Units . | . . . . . . Scanalyzers . | . . . . . . Garrison Access . | . . . . . . Data Cores Recovered 1 | . 1 . . . . Used 1 | . 1 . . . . Hacking Detections 19 | . 1 . 9 7 2 Full Trace Events 5 | . . . 2 2 1 Feedback Events 1 | . . . . 1 . Corruption 1 | . . . . 1 . Feedback Blocked . | . . . . . . Robot Schematics Acquired . | . . . . . . Robots Built . | . . . . . . Authchips . | . . . . . . Time . | . . . . . . Total Robot Build Rating . | . . . . . . Part Schematics Acquired . | . . . . . . Parts Built . | . . . . . . Authchips . | . . . . . . Time . | . . . . . . Total Part Build Rating . | . . . . . . Parts Repaired 1 | . . . 1 . . Time 44 | . . . 44 . . Parts Recycled . | . . . . . . Recycled Matter . | . . . . . . Retrieved Matter . | . . . . . . Retrieved Components 10 | . . . 10 . . Parts Scanalyzed 1 | . . . 1 . . Part Schematics Acquired . | . . . . . . Parts Damaged . | . . . . . . Bothacking | -11 -10 -10 -8 -7 -7 ------------ Run | Yrd Mat Sub Mat Fac Sto Used RIF Installer . | . . . . . . Robots Hacked . | . . . . . . Non-combat . | . . . . . . Combat . | . . . . . . Robot Hacks Applied . | . . . . . . Relay Couplers Released . | . . . . . . Fabnet Peak Effective % . | . . . . . . Robots Rewired . | . . . . . . Allies Hacked . | . . . . . . Hacks Repelled . | . . . . . . Allies | -11 -10 -10 -8 -7 -7 -------- Run | Yrd Mat Sub Mat Fac Sto Total Allies . | . . . . . . Largest Group . | . . . . . . Highest-Rated Group . | . . . . . . Highest-Rated Ally . | . . . . . . Total Orders . | . . . . . . Ally Attacks . | . . . . . . Total Damage . | . . . . . . Kills . | . . . . . . Allies Corrupted . | . . . . . . Allies Melted . | . . . . . . Intel | -11 -10 -10 -8 -7 -7 ------- Run | Yrd Mat Sub Mat Fac Sto Active Infowar (turns) 2799 | 12 415 592 605 1175 . Optics 159 | . . 159 . . . Sensors 1175 | . . . . 1175 . Terrain 427 | 12 415 . . . . Structural 166 | . . 166 . . . Machine Analysis 872 | . . 267 605 . . Robot Analysis Total . | . . . . . . Derelict Logs Recovered . | . . . . . . Drone Launches . | . . . . . . Drone Recoveries . | . . . . . . Exploration | -11 -10 -10 -8 -7 -7 ------------- Run | Yrd Mat Sub Mat Fac Sto Turns Passed 6477 | 117 671 1371 1618 2640 60 Spaces Moved 4056 | 55 276 848 770 2008 99 Core 27 | 4 . . 1 3 19 Treads 620 | 51 276 293 . . . Legs 72 | . . . 72 . . Wheels 3098 | . . 555 696 1847 . Hover 1 | . . . 1 . . Flight 238 | . . . . 158 80 Fastest Speed 32 | 50 160 95 100 32 32 Average Speed 111 | 152 160 133 112 96 57 Slowest Speed 500 | 160 160 240 500 150 100 Overloaded Moves 2 | . . . . 2 . Propulsion Burnouts . | . . . . . . Robots Hopped 10 | . . . . 7 3 Potential Cave-ins . | . . . . . . Cave-ins Triggered . | . . . . . . Exploration Rate (%) 46 | 4 45 60 76 61 32 Regions Visited 5 Branch Regions 2 Pre-discovered Areas . | . . . . . . Known Exits Taken 2 | . . . 1 1 . Unknown Exits Taken 3 | 1 1 1 . . . Scrap Searched 7 | . . 7 . . . Spaces Dug 60 | . 15 . 2 43 . Terrain Destroyed 220 | . 15 42 26 137 . Melee 24 | . . . 2 22 . Projectile 5 | . . . 2 3 . AOE 191 | . 15 42 22 112 . Terrain Rammed . | . . . . . . Walls Destroyed . | . . . . . . Machines Disabled . | . . . . . . Actions | -11 -10 -10 -8 -7 -7 --------- Run | Yrd Mat Sub Mat Fac Sto Total 5412 | 73 442 998 1288 2512 99 Wait 787 | . 121 51 309 306 . Move 4032 | 54 275 847 769 1994 93 Hop 10 | . . . . 7 3 Pick Up 47 | 3 3 21 12 8 . Fast Attach 40 | 7 1 . 19 13 . Attach 27 | . . 12 3 11 1 Detach 8 | . . 1 2 4 1 Swap 64 | 1 5 14 16 28 . Drop 41 | . 3 4 19 15 . Fire 294 | 7 33 48 132 74 . Melee 37 | . . . 2 35 . Ram 8 | . . . 4 3 1 Kick 1 | . . . 1 . . Crush 2 | 1 1 . . . . Escape Stasis 14 | . . . . 14 . Rewire . | . . . . . . Trap . | . . . . . . Miscellaneous . | . . . . . . Route ------- -11/Scrapyard -10/Materials (discovered 3 exits: [*Mat] / [*Min] / *Sub) -10/Subcaves (discovered 2 exits: *Mat x2) -8/Materials (discovered 2 exits: *Fac x2) -7/Factory (discovered 5 exits: *Fac x3 / *Sto / *Low) -7/Storage History --------- Turn | Location | Event 3 | -11/Scrapyard | Discovered new exit (range 16) 118 | -11/Scrapyard | Entered Materials 303 | -10/Materials | Build established: Mutant 405 | -10/Materials | Discovered new exit (range 16) 626 | -10/Materials | Discovered new exit (range 11) 765 | -10/Materials | Discovered new exit (range 9) 789 | -10/Materials | Entered Subcaves 790 | -10/Subcaves | Approached by a straggling Scientist 848 | -10/Subcaves | Shifting Twisted Machinery released Battle Rifle 908 | -10/Subcaves | Visited Clippyterm 913 | -10/Subcaves | Learned Factory stockpile data 913 | -10/Subcaves | Learned Factory garrison access intel 1278 | -10/Subcaves | Lost 3 parts (1n1u1w) 1522 | -10/Subcaves | Core integrity fell below 50% 1558 | -10/Subcaves | Lost 3 parts (2n1w) 1578 | -10/Subcaves | Core integrity fell below 20% 1603 | -10/Subcaves | Discovered new exit (range 6) 1729 | -10/Subcaves | Discovered new exit (range 10) 1949 | -10/Subcaves | Visited 4L-MR0's lab 1968 | -10/Subcaves | Found Gun Armor 2160 | -10/Subcaves | Entered Materials 2160 | -8/Materials | Evolved 4 slots: Propulsion x2, Utility x2 2531 | -8/Materials | Lost 4 parts (1p3n) 2920 | -8/Materials | Repaired Mak. Light Armor Plating 2975 | -8/Materials | Discovered new exit (range 15) 3319 | -8/Materials | Core integrity fell below 50% 3462 | -8/Materials | Discovered new exit (range 14) 3498 | -8/Materials | Identified exit to Factory 3778 | -8/Materials | Entered Factory 3778 | -7/Factory | Evolved 2 slots: Utility x2 3780 | -7/Factory | Loaded intel: 4 garrison access locations 4586 | -7/Factory | Cargo convoy interrupted 4611 | -7/Factory | Discovered new exit (range 5) 4614 | -7/Factory | Identified exit to Lower Caves 4689 | -7/Factory | Discovered new exit (range 12) 4699 | -7/Factory | Identified exit to Factory 5535 | -7/Factory | Discovered exit to Factory (range 16) 5913 | -7/Factory | Discovered exit to Factory (range 6) 5956 | -7/Factory | Attached Gun Armor, gained temporary slots: Weapon x2 5989 | -7/Factory | Lost 5 parts (1p3u1w) 6069 | -7/Factory | System corruption reached 10% 6351 | -7/Factory | Core integrity fell below 50% 6399 | -7/Factory | Core integrity fell below 20% 6412 | -7/Factory | Discovered new exit (range 3) 6413 | -7/Factory | Identified exit to Storage 6418 | -7/Factory | Entered Storage 6478 | -7/Storage | Destroyed by G-47 Trooper with Particle Gun Last Messages --------------- LOCATION=STORAGE GOAL=ESCAPE 06419_ 0 KOYGJLW|V>HWPKL8UFJV 06419_ O-24 Administrator: "IFF HANDSHAKE FAILED. SECURING TERMINAL." 06422_ O-24 Administrator uses terminal to summon reinforcements. 06422_ ALERT: Hostiles spotted, dispatching reinforcements to Terminal S007. 06422_ O-24 Administrator locks terminal. 06428_ Connecting with Terminal... 06434_ System corrupted: Substantial component data lost. 06437_ Xenon Bombardment Thruster destroyed. 06447_ K-01 Serf collects debris. 06455_ K-01 Serf cleans the Storage Shell. 06466_ Imp. Sensor Array destroyed. 06468_ System corrupted: Cld. VTOL Module fused. 06472_ ALERT: Hostiles spotted, dispatching reinforcements to Terminal S009. 06477_ Connecting with Recycling Unit... 06477_ ALERT: Suspicious activity at Recycling Unit S001. Dispatching Investigation squad. Map ----- +----------------------------------------------------+ | ?????????????????????????????????? | | ?????????????????????????????????? | | ?????????????????????????????????? | | ?????????????????????????????????? | | ?????????????????????????????????? | | ?????????#########???????????????? | | ?????????# #???????????????? | | ?????????# ! #???????????????? | | ?????????# #???????????????? | | ?????????# ????????????????? | | ?????????# ] ????????????????? | | ?????????# ?????????????????? | | ?????????# [ ?????????????????? | | ?????????? ??????????????????? | | ?????????? ??????????????????" | | ???"???????! ??????????????# """" | | ? """??????[ ??????????????# | | # """ ???#+#+#####????????#######+ | | # ??+ #????????# | | # ?# #????????# | | # ]! ] # g!]ga #????????# ^ | | # ]! # ]!! #?###+##?# | | # !! " ]!! ### ### ##### | | ?????##### #???? | | ?????# #???? | | ?????# @#" "###### ##+###???? | | ?????# #"Y"#????## ## ????? | | ?????+ #"""#?????# ## """ ??# | | ?????# ########?????# # """ # | | ?????# ?????????????# ## """ # | | ?????#??????????????# ## # | | ???????????????????? ## """ # | | ???????????????????? ## ""??? # | | ???????????????????###### "?????? | | ????????????????????????# ?????? | | ????????????????????????####?????? | | ?????????????????????????????????? | | ?????????????????????????????????? | | ?????????????????????????????????? | | ?????????????????????????????????? | | ?????????????????????????????????? | | ?????????????????????????????????? | | ?????????????????????????????????? | | | | | | | | | | | | | | | +----------------------------------------------------+ Best States ------------- Heat Dissipation 45 Energy Generation 18 Energy Capacity 250 Matter Stores 300 Matter Capacity 300 Sight Range 21 Robot Scan Range 15 Terrain Scan Range 16 Terrain Scan Density 10 Armor Coverage 700 Evasion (%) 63 Targeting Accuracy 8 Target Analysis 5 Recoil Reduction 2 Offensive Hacking 12 Defensive Hacking 10 Item Schematics ----------------- None Robot Schematics ------------------ None Fabricated ------------ Nothing Repaired ---------- Mak. Light Armor Plating | 33% | -8/Materials Alien Tech Used ----------------- None Achievements -------------- None Challenges ------------ None Game ------ Seed BoreCooledDoublenader Manual? 0 Play Time 01:00:53 Cumulative 129.4 hours Start 2025.06.25 @ 17:52:00 End 2025.06.25 @ 19:41:56 Sessions 1 Manual Loads 0 Difficulty Rogue Special Mode None Game No. 140 Rogue 140 Adventurer 0 Explorer 0 Win Type - Total 2 Types 1/0/0/1/0/0/0/0/0/0 Lore% 61 Gallery% 57 Achievement% 51 Wizard Run 0 Options --------- Layout 1 ASCII 0 Keyboard 1 Movement Numpad Keybinds 0 Fullscreen 1 Font 32/SmallcapsGlow Map View 77x35 Zoom Use 0% Tactical HUD 1 Map Filters NONE Filters NONE Steam 1 RUN: f37eee81-ed30-4b56-94fe-7a7f5ef0a310